Cogmind - Beta 17 @@@ ROGUE MODE // 2026.07.29 @ 01:53:22 Player: Momo Result: Destroyed self via exploding Fusion Modulator Performance ------------- Evolutions (0) 0 Regions Visited (1) 200 Robots Destroyed (14) 70 Value Destroyed (332) 332 Prototype IDs (1) 20 Alien Tech Used (0) 0 Bonus (5000) 5000 TOTAL SCORE: 5622 Bonus ------- Prayed to X0-1V1 5000 Cogmind --------- Core Integrity 0/250 Matter 290/300 Energy 100/100 System Corruption 2% Temperature Cool (36) Movement Core (50) Location -10/Materials Parts ------- > --- POWER (1) -------- (None) > --- PROPULSION (2) --- Compact Wheel > --- UTILITY (2) ------ Weight Redist. System X0-1V1's Piety Tracker > --- WEAPON (2) ------- Mining Claw > --- INVENTORY (5) ---- Improved Aluminum Leg Wheel Small Storage Unit Weight Redist. System Transport Network Coupler Peak State ------------ > --- POWER ------------ Light Ion Engine > --- PROPULSION ------- Improved Aluminum Leg Compact Wheel > --- UTILITY ---------- Weight Redist. System X0-1V1's Piety Tracker > --- WEAPON ----------- Mining Claw > --- INVENTORY -------- Improved Aluminum Leg Wheel Small Storage Unit Weight Redist. System Transport Network Coupler [Rating: 20] Favorites ----------- Power Ion Engine Engine Ion Engine Propulsion Compact Wheel Leg Improved Aluminum Leg Wheel Compact Wheel Utility Weight Redist. System Device Weight Redist. System Weapon Small Laser Energy Gun Small Laser Ballistic Gun Light Assault Rifle Slashing Weapon Mining Claw Build | -11 -10 ------- Run | Yrd Mat Slots Evolved . | . . Power . | . . Propulsion . | . . Utility . | . . Weapon . | . . Parts Attached 13 | 4 9 Power 2 | . 2 Engine 2 | . 2 Core . | . . Reactor . | . . Propulsion 4 | 2 2 Treads . | . . Leg 1 | . 1 Wheel 3 | 2 1 Hover . | . . Flight . | . . Utility 3 | . 3 Device 3 | . 3 Storage . | . . Processor . | . . Hackware . | . . Protection . | . . Artifact . | . . Weapon 4 | 2 2 Energy Gun 2 | 2 . Energy Cannon . | . . Ballistic Gun 1 | . 1 Ballistic Cannon . | . . Launcher . | . . Special Weapon . | . . Impact Weapon . | . . Slashing Weapon 1 | . 1 Piercing Weapon . | . . Special Melee Weapon . | . . Unidentified Prototypes 1 | . 1 Parts Lost 7 | . 7 Power 2 | . 2 Propulsion 3 | . 3 Utility . | . . Weapon 2 | . 2 Highest Loss Streak 4 | . 4 To Critical Strikes . | . . Average Backups 4 | . 4 Power . | . . Propulsion 1 | . 2 Utility 1 | . 1 Weapon . | . . Tool/Special . | . . Unused Backups 4 | . 4 Power . | . . Propulsion 2 | . 2 Utility 2 | . 2 Weapon . | . . Tool/Special . | . . Average Slot Usage (%) 78 | . 78 Engine 11 | . 11 Wheel 20 | . 20 Device 23 | . 23 Energy Gun 12 | . 12 Ballistic Gun 1 | . 1 Slashing Weapon 6 | . 6 Peak Build Rating 20 | 4 20 Average Rating 7 | 2 7 On Entrance 2 | . 4 Avg Prop Armor Cover (%) 14 | 16 14 Naked Turns . | . . Heaviest Build 8 | 3 8 Greatest Support 26 | 26 26 Greatest Overweight (x) 2 | . 2 Average Overweight (x) . | . . Largest Inventory Capacity 5 | 5 5 Average Capacity 5 | 5 5 Most Carried 5 | 2 5 Average Carried 4 | . 4 Final Capacity 5 | 5 5 Final Carried 5 | 2 5 Class Distribution -------------------- 100% | Mutant Dominant Class ---------------- Mutant | -10/Materials Resources | -11 -10 ----------- Run | Yrd Mat Matter Collected 310 | 226 84 Remotely . | . . Salvage Created 605 | . 605 Parts 29 | . 29 Haulers Intercepted 2 | . 2 Recyclers Shooed . | . . Parts Field Recycled . | . . Retrieved Matter . | . . Parts Self-Destructed . | . . Prevented . | . . Parts Restored . | . . Kills | -11 -10 ------- Run | Yrd Mat Combat Hostiles Destroyed 9 | . 9 Melee 3 | . 3 Guns 6 | . 6 Classes Destroyed 5 | . 5 Hauler 2 | . 2 Recycler 2 | . 2 Watcher 1 | . 1 Swarmer 3 | . 3 Grunt 6 | . 6 Best Kill Streak 4 | . 4 Combat Bots Only 2 | . 2 Max Kills in Single Turn 1 | . 1 Gunslinging . | . . Exploded . | . . Melee 1 | . 1 Uniques/NPCs Destroyed . | . . Combat | -11 -10 -------- Run | Yrd Mat Hostile Shots Fired 63 | . 63 Missed 13 | . 13 Hits 50 | . 50 Projectile 50 | . 50 Critical Strikes 1 | . 1 Damage Taken 794 | . 794 Core 280 | . 280 Absorbed by Shields . | . . Core Remaining (%) 100 | 100 . Volleys Fired 31 | . 31 Largest 2 | . 2 Hottest 90 | . 90 Shots Fired 61 | . 61 Gun 61 | . 61 Cannon . | . . Launcher . | . . Special . | . . Kinetic 13 | . 13 Thermal 48 | . 48 Explosive . | . . Electromagnetic . | . . Robot Hit Streak 14 | . 14 Robot Miss Streak 4 | . 4 Penetration Max . | . . Secondary Targets . | . . Shots Hit Robots 59 | . 59 Core Hits 24 | . 24 Critical Kills . | . . Critical Parts Destroyed . | . . Critical Strikes 1 | . 1 Burn 1 | . 1 Melee Attacks 33 | . 33 Impact . | . . Slashing 33 | . 33 Piercing . | . . Sneak Attacks 3 | . 3 Combat Hostiles . | . . Follow-up Attacks . | . . Damage Inflicted 1010 | . 1010 Guns 480 | . 480 Cannons . | . . Explosions 77 | . 77 Melee 453 | . 453 Ramming . | . . Kinetic 78 | . 78 Thermal 479 | . 479 Explosive . | . . Electromagnetic . | . . Impact . | . . Slashing 453 | . 453 Piercing . | . . Highest Corruption 2 | . 2 Average Corruption 2 | . 2 Corruption Purged . | . . Corruption Blocked . | . . Effects 2 | . 2 Heat Flow Errors 1 | . 1 Energy Discharges 1 | . 1 Overload Shots . | . . Overflow Damage 194 | . 194 Projectiles . | . . Explosions 176 | . 176 Melee 18 | . 18 Knockbacks . | . . Impact . | . . Kinetic . | . . Secondary . | . . Self-Inflicted Damage 233 | . 233 Shots 3 | . 3 Rammed 1 | . 1 Targets Rammed 1 | . 1 Kicked . | . . Crushed . | . . Highest Temperature 216 | . 216 Average Temperature 79 | . 79 Received Heat Transfer 252 | . 252 Siege Activations . | . . Martial Activations . | . . Shielding Activations . | . . Robots Disrupted . | . . Combat Hostiles . | . . Robots Corrupted . | . . Combat Hostiles . | . . Parts Fried . | . . Impact Corruptions . | . . Robots Melted . | . . Combat Hostiles . | . . Parts Melted 1 | . 1 Heat Transferred 1118 | . 1118 Parts Sabotaged . | . . Parts Stolen . | . . Parts Stripped . | . . Power Chain Reactions . | . . Alert | -11 -10 ------- Run | Yrd Mat Maximum Alert Level . | . . Low Security (%) 100 | 100 100 Level 1 . | . . Level 2 . | . . Level 3 . | . . Level 4 . | . . Level 5 . | . . High Security . | . . Max Security . | . . Peak Influence 163 | . 163 Initial . | . . Average 93 | . 98 Influence Increases 481 | . 481 Destroy 0b10 Robot/C 180 | . 180 Destroy 0b10 Robot/NC 25 | . 25 Destroy Leader 46 | . 46 Successful Hack 11 | . 11 Disable Machine 60 | . 60 Destroy Structure 54 | . 54 Lose Combat Pursuer 105 | . 105 Influence Decreases 338 | . 338 Time Decay 258 | . 258 Lost Part 70 | . 70 Lost Ally 10 | . 10 Squads Dispatched 1 | . 1 Investigation . | . . Extermination . | . . Reinforcement 1 | . 1 Assault . | . . Garrison . | . . Intercept . | . . Searches Triggered . | . . Construction Impeded . | . . Haulers Reinforced . | . . Active Scanning Responses . | . . Cargo Convoy Interrupts . | . . Stealth | -11 -10 --------- Run | Yrd Mat Distress Signals 1 | . 1 Communications Jammed . | . . Distress Signals . | . . Times Spotted 25 | . 25 Peak Tracking Total 5 | . 5 Tactical Retreats 3 | . 3 Traps | -11 -10 ------- Run | Yrd Mat Traps Triggered 1 | . 1 Indirectly . | . . Trap Hack Attempts . | . . Triggered . | . . Disarmed . | . . Reprogrammed . | . . Reused . | . . Traps Extracted . | . . Installed . | . . Triggered . | . . Machines | -11 -10 ---------- Run | Yrd Mat Machines Disabled 4 | . 4 Max in Single Turn 3 | . 3 Machines Repaired . | . . Machines Dismantled . | . . Machines Sabotaged . | . . Overloaded Fab Kills . | . . Hacking | -11 -10 --------- Run | Yrd Mat Machines Accessed 6 | . 6 Terminals 6 | . 6 Fabricators . | . . Repair Stations . | . . Recycling Units . | . . Scanalyzers . | . . Garrison Access . | . . Total Hacks 12 | . 12 Successful 3 | . 3 Failed 9 | . 9 Catastrophic 2 | . 2 Database Lockouts . | . . Manual 10 | . 10 Terminals 12 | . 12 Fabricators . | . . Repair Stations . | . . Recycling Units . | . . Scanalyzers . | . . Garrison Access . | . . Terminal Hacks 2 | . 2 Zone Layout 2 | . 2 Fabricator Hacks . | . . Repair Station Hacks . | . . Recycling Unit Hacks . | . . Scanalyzer . | . . Garrison Access Hacks . | . . Unauthorized Hacks 1 | . 1 Terminals 1 | . 1 Assimilate 1 | . 1 Fabricators . | . . Repair Stations . | . . Recycling Units . | . . Scanalyzers . | . . Garrison Access . | . . Data Cores Recovered . | . . Used . | . . Hacking Detections 5 | . 5 Full Trace Events . | . . Feedback Events . | . . Feedback Blocked . | . . Robot Schematics Acquired . | . . Robots Built . | . . Authchips . | . . Time . | . . Total Robot Build Rating . | . . Part Schematics Acquired . | . . Parts Built . | . . Authchips . | . . Time . | . . Total Part Build Rating . | . . Part Studies Acquired . | . . Parts Repaired . | . . Time . | . . Parts Recycled . | . . Recycled Matter . | . . Retrieved Matter . | . . Retrieved Components . | . . Parts Scanalyzed . | . . Part Schematics Acquired . | . . Parts Damaged . | . . Bothacking | -11 -10 ------------ Run | Yrd Mat Used RIF Installer . | . . Robots Hacked . | . . Non-combat . | . . Combat . | . . Robot Hacks Applied . | . . Relay Couplers Released . | . . Fabnet Peak Effective % . | . . Robots Rewired . | . . Allies Hacked . | . . Hacks Repelled . | . . Allies | -11 -10 -------- Run | Yrd Mat Total Allies 1 | . 1 Largest Group 1 | . 1 Highest-Rated Group 10 | . 10 Highest-Rated Ally 10 | . 10 Total Orders . | . . Ally Attacks . | . . Total Damage . | . . Kills . | . . Allies Corrupted 1 | . 1 Allies Melted . | . . X0-1V1 Amusement Gains 101 | . 101 Intel | -11 -10 ------- Run | Yrd Mat Active Infowar (turns) . | . . Robot Analysis Total . | . . Derelict Logs Recovered . | . . Drone Launches . | . . Drone Recoveries . | . . Exploration | -11 -10 ------------- Run | Yrd Mat Turns Passed 638 | 35 603 Spaces Moved 521 | 44 477 Core 335 | 32 303 Treads . | . . Legs . | . . Wheels 186 | 12 174 Hover . | . . Flight . | . . Fastest Speed 50 | 50 50 Average Speed 74 | 61 75 Slowest Speed 150 | 100 150 Overloaded Moves . | . . Propulsion Burnouts . | . . Robots Hopped . | . . Potential Cave-ins . | . . Cave-ins Triggered . | . . Exploration Rate (%) 40 | 3 77 Regions Visited 1 Branch Regions . Pre-discovered Areas . | . . Known Exits Taken . | . . Unknown Exits Taken 1 | 1 . Scrap Searched . | . . Spaces Dug 3 | . 3 Terrain Destroyed 55 | . 55 Melee 3 | . 3 Projectile . | . . AOE 52 | . 52 Terrain Rammed . | . . Walls Destroyed . | . . Machines Disabled . | . . Actions | -11 -10 --------- Run | Yrd Mat Total 640 | 49 591 Wait 32 | . 32 Move 520 | 43 477 Hop . | . . Pick Up 8 | 2 6 Fast Attach 8 | 4 4 Attach 4 | . 4 Detach 1 | . 1 Swap 1 | . 1 Drop 1 | . 1 Fire 31 | . 31 Melee 33 | . 33 Ram 1 | . 1 Kick . | . . Crush . | . . Escape Stasis . | . . Rewire . | . . Trap . | . . Miscellaneous . | . . Route ------- -11/Scrapyard -10/Materials (discovered 4 exits: [*Mat x3] / [*Sub]) History --------- Turn | Location | Event 3 | -11/Scrapyard | Discovered new exit (range 16) 36 | -11/Scrapyard | Entered Materials 114 | -10/Materials | Discovered new exit (range 15) 279 | -10/Materials | Discovered new exit (range 5) 301 | -10/Materials | Build established: Mutant 367 | -10/Materials | Lost 4 parts (2n2w) 368 | -10/Materials | Core integrity fell below 50% 508 | -10/Materials | Discovered new exit (range 6) 592 | -10/Materials | Discovered new exit (range 9) 600 | -10/Materials | Prayed at D.C.S.S. Altar Unit 639 | -10/Materials | Destroyed self via exploding Fusion Modulator Last Messages --------------- 00545_ U-05 Engineer builds a Wall. 00556_ System corrupted: Energy discharge (-40). 00560_ K-01 Serf cleans the Terminal. 00592_ EXIT=FOUND 00600_ Connecting with D.C.S.S. Altar Unit... >>pray A new toy? 00610_ Acquired Prototype Device. 00610_ Identified X0-1V1's Piety Tracker. 00623_ K-01 Serf cleans the Fusion Modulator. 00639_ Fusion Modulator explodes. 00639_ Lgt. Ion Engine destroyed. 00639_ Destroyed Lgt. Ion Engine. 00639_ Fusion Modulator explodes. 00639_ Imp. Aluminum Leg destroyed. 00639_ Destroyed Imp. Aluminum Leg. 00639_ Destroyed Sml. Matter Pod. 00639_ Destroyed Lgt. Ion Engine. 00639_ X0-1V1 chortles! Map ----- +----------------------------------------------------+ | | | | | | | | | | | | | | | | | | | | | | | ???????????????????????????????????????????## | | ?????????????????????????????????????#? ? | | ?????????????????????????????????????# | | ?????????????????##?#????????????????# | | ?########????##### # ###?????????????# """ "" | | ?# #????#;;;;;;;; #?############# """ "" | | ?# #????#; k ; #?# # # """ "" | | ?# ######; ;;### """ # < # """ "" | | ?# # + """ # # | | ## # ## """ # ###+#### | | #X ## """ # # | | ?# # ## """ %+ " | | ?# # ## # """ T | | ?# ## ; # # """ " | | #< ## # @ # # """ # | | ### ## # # # % # | | ??######## # # # % # | | ?????????# ;; ; ######### ![ | | ?????????# #; =; #???????# [ % | | ????????## #;;;;;;;; ##?????## #### % | | ????????# ##;###; ####### ####+## | | ????????# T" ! # | | ????????# " w # | | ????????# ! # """ | | ????????# ####### ####### # """ | | ????????############## ##?????####### """ | | ??????????????# # #####????????# | | ??????????????#!!! # #"""#????????# | | ??????????????#!! / #"Y"################ | | ??????????????#!! # | | ??????????????# # | | ??????????????# # "" | | ??????????????######## "" ############# | | ??????????????# # T" # #??????? | | ??????????????# ! # "" # #####??? | | ??????????????# + "" + # ! ?? | | ??????????????# |= # # # | | ??????????????# |= # % + # """ "" | | ??????????????# =[ # #T## ###### """ "" | +----------------------------------------------------+ Best States ------------- Heat Dissipation 25 Energy Generation 10 Energy Capacity 250 Matter Stores 300 Matter Capacity 300 Sight Range 16 Terrain Scan Density 10 Additional Mass Support 6 Evasion (%) 50 Item Schematics ----------------- None Robot Schematics ------------------ None Fabricated ------------ Nothing Repaired ---------- Nothing Studied --------- None Alien Tech Used ----------------- None Achievements -------------- None Challenges ------------ None Game ------ Seed DirectedTransmissionScythe Manual? 0 Play Time 00:07:17 Cumulative 474.8 hours Start 2026.07.29 @ 01:46:23 End 2026.07.29 @ 01:53:22 Sessions 1 Manual Loads 0 Difficulty Rogue Special Mode None Game No. 246 Rogue 242 Adventurer 0 Explorer 4 Win Type - Total 26 Types 9/1/2/6/1/2/3/1/1/0 Lore% 69 Gallery% 74 Achievement% 57 Wizard Run 0 Options --------- Layout 1 ASCII 0 Keyboard 0 Movement Mouse Keybinds 0 Fullscreen 1 Font 24/Smallcaps Map View 50x35 Zoom Use 0% Tactical HUD 1 Map Filters NONE Filters NONE Steam 1 RUN: 9e0a3379-fc67-43ad-9824-55dff161b38d